bitfinex/quotes_BTCUSD_20250114
["timestamp","ask_amount","ask_price","bid_price","bid_amount"]
[1736870992869,0.36275839,96099.0,96098.0,0.0017913]
[1736870993955,0.13164039,96099.0,96098.0,0.05384671]
[1736870994963,0.13164039,96099.0,96098.0,0.06284671]
[1736870994964,0.13264039,96099.0,96098.0,0.06284671]
[1736870995141,0.13264039,96099.0,96098.0,1.56284671]
[1736870995348,0.13164039,96099.0,96098.0,1.55384671]
[1736870995553,0.13264039,96099.0,96098.0,1.56284671]
[1736870995812,0.13264039,96099.0,96098.0,1.55384671]
[1736870995954,0.13164039,96099.0,96098.0,1.55384671]
[1736870996153,0.13264039,96099.0,96098.0,1.55884671]
[1736870996564,0.13164039,96099.0,96098.0,0.05384671]
[1736870996996,0.15464039,96099.0,96098.0,0.05384671]
[1736870997812,0.1569413,96099.0,96098.0,0.06284671]
[1736870997942,0.15564039,96099.0,96098.0,0.06284671]
[1736870998128,0.15464039,96099.0,96098.0,0.05384671]
[1736870998330,0.15564039,96099.0,96098.0,0.05984671]
[1736870998544,0.13264039,96099.0,96098.0,0.05984671]
[1736870998745,0.05443431,96099.0,96098.0,0.05384671]
[1736870998950,0.13164039,96099.0,96098.0,0.05884671]
[1736870999186,0.13164039,96099.0,96098.0,1.55884671]
[1736870999453,0.13164039,96099.0,96098.0,1.55384671]
[1736870999669,0.13264039,96099.0,96098.0,1.55984671]
[1736871000289,0.26890941,96099.0,96098.0,0.05984671]
[1736871000518,0.25564039,96099.0,96098.0,0.05984671]
[1736871000703,0.37049881,96099.0,96098.0,0.05984671]
[1736871000904,0.37049881,96099.0,96098.0,0.05384671]
[1736871000905,0.54839881,96099.0,96098.0,0.05384671]
[1736871001111,0.64486587,96099.0,96098.0,0.05384671]
[1736871001315,0.15464039,96073.0,96072.0,0.00178878]
[1736871001524,0.15594172,96073.0,96072.0,0.00178878]
[1736871002152,0.25594172,96073.0,96072.0,0.00178878]
[1736871002471,0.28264249,96073.0,96072.0,0.00578878]
[1736871002587,0.28269226,96073.0,96072.0,0.00578878]
[1736871002828,0.05448408,96073.0,96072.0,0.00578878]
[1736871003166,0.13169016,96073.0,96072.0,1.50178878]
[1736871003572,4.977e-05,96073.0,96072.0,1.7560157]
[1736871003711,4.977e-05,96073.0,96072.0,1.8012157]
[1736871003916,4.977e-05,96073.0,96072.0,1.81170157]
[1736871004343,4.977e-05,96073.0,96072.0,2.19713957]
[1736871004500,0.05448408,96073.0,96072.0,1.8012157]
[1736871004908,0.05448408,96073.0,96072.0,1.60604419]
[1736871004909,0.13269016,96073.0,96072.0,1.60604419]
[1736871005326,0.00104977,96073.0,96072.0,1.86027111]
[1736871005537,4.977e-05,96073.0,96072.0,1.85327111]
[1736871005762,0.00104977,96073.0,96072.0,1.86227111]
[1736871005961,0.00104977,96073.0,96072.0,1.97313426]
[1736871006159,0.00104977,96073.0,96072.0,1.86393426]
[1736871006160,4.977e-05,96073.0,96072.0,1.86393426]
[1736871006390,0.05448408,96073.0,96072.0,1.70327111]
[1736871006613,0.13269016,96073.0,96072.0,1.66707111]
[1736871006789,0.13269016,96073.0,96072.0,0.16707111]
[1736871007636,0.00104977,96073.0,96072.0,0.31707111]
[1736871007790,0.07725585,96073.0,96072.0,0.30807111]
[1736871008189,0.07725585,96073.0,96072.0,0.31707111]
[1736871008190,0.13169016,96073.0,96072.0,0.31707111]
[1736871008422,0.13169016,96073.0,96072.0,0.16707111]
[1736871008614,0.13169016,96073.0,96072.0,0.05384419]
[1736871009050,0.13169016,96073.0,96072.0,0.06284419]
[1736871009492,0.13169016,96073.0,96072.0,0.16707111]
[1736871009666,0.13169016,96073.0,96072.0,0.15807111]
[1736871011080,0.13169016,96073.0,96072.0,0.16707111]
[1736871011081,0.13269016,96073.0,96072.0,0.16707111]
[1736871011288,0.00104977,96073.0,96072.0,0.56442211]
[1736871011486,4.977e-05,96073.0,96072.0,0.52098006]
[1736871011686,0.00104977,96073.0,96072.0,0.46055906]
[1736871011918,0.00104977,96073.0,96072.0,1.82772906]
[1736871012327,0.00104977,96073.0,96072.0,2.30940706]
[1736871012531,0.07720608,96101.0,96096.0,0.15]
[1736871012733,0.05443431,96114.0,96097.0,0.29942692]
[1736871012935,0.05443431,96115.0,96097.0,0.50754992]
[1736871013061,0.05443431,96126.0,96097.0,0.50754992]
[1736871013277,0.05443431,96118.0,96097.0,2.05960533]
[1736871013508,0.07720608,96114.0,96097.0,2.05960533]
[1736871013668,0.05443431,96118.0,96097.0,2.37339533]
[1736871013864,0.07720608,96114.0,96097.0,2.37339533]
[1736871014104,0.05443431,96124.0,96097.0,2.42667175]
[1736871014274,0.05443431,96124.0,96097.0,2.43714333]
[1736871014480,0.05443431,96124.0,96097.0,2.51724333]
[1736871015030,0.001853,96098.0,96097.0,2.52624333]
[1736871015208,0.000853,96098.0,96097.0,2.51724333]
[1736871015587,0.001853,96098.0,96097.0,2.50181498]
[1736871015792,0.001853,96098.0,96097.0,2.43773898]
[1736871016238,0.001853,96098.0,96097.0,2.19554498]
[1736871016437,0.001853,96098.0,96097.0,2.56615898]
[1736871017359,0.001853,96098.0,96097.0,2.43702298]
[1736871017599,0.000853,96098.0,96097.0,0.37211606]
[1736871017808,0.13249339,96098.0,96097.0,0.37211606]
[1736871018026,0.13349339,96098.0,96097.0,0.38111606]
[1736871018233,0.13249339,96098.0,96097.0,0.36440533]
[1736871018442,0.13249339,96098.0,96097.0,0.15628233]
[1736871018660,0.13349339,96098.0,96097.0,0.16528233]
[1736871018851,0.13349339,96098.0,96097.0,0.208123]
[1736871019009,0.13249339,96098.0,96097.0,0.208123]
[1736871019423,0.13249339,96098.0,96081.0,0.208157]
[1736871019424,0.13164039,96082.0,96081.0,0.208157]
[1736871019634,0.13164039,96082.0,96081.0,0.358157]
[1736871020592,0.13164039,96084.0,96083.0,0.208153]
[1736871020823,0.13164039,96084.0,96083.0,0.31237992]
[1736871021179,0.07720608,96084.0,96083.0,0.46237992]
[1736871021517,0.07720608,96084.0,96083.0,0.51443533]
[1736871022386,0.000853,96098.0,96088.0,0.358142]
[1736871022588,0.07720608,96090.0,96089.0,0.25422692]
[1736871022800,0.07720608,96090.0,96089.0,0.46236692]
[1736871023008,0.13164039,96089.0,96083.0,0.001]
[1736871023239,0.13164039,96073.0,96071.0,0.208177]
[1736871023461,0.13164039,96073.0,96072.0,0.25622818]
[1736871023626,0.13164039,96073.0,96072.0,0.15200126]
[1736871024454,0.13164039,96073.0,96072.0,0.00200126]
[1736871024814,0.13164039,96073.0,96072.0,0.05405667]
[1736871025020,0.287049,96085.0,96074.0,0.15]
[1736871025021,0.07720608,96075.0,96074.0,0.15]
[1736871025356,0.05443431,96091.0,96083.0,0.15]
[1736871025542,0.07805908,96098.0,96097.0,0.358123]
[1736871025718,0.13249339,96098.0,96097.0,0.46234992]
[1736871025902,0.13249339,96098.0,96097.0,1.55205541]
[1736871026107,0.13249339,96098.0,96097.0,0.05205541]
[1736871026897,0.26874273,96098.0,96097.0,0.05205541]
[1736871027297,0.20105908,96098.0,96097.0,0.05205541]
[1736871027506,0.25549339,96098.0,96097.0,0.05205541]
[1736871027917,0.13249339,96098.0,96097.0,0.06105541]
[1736871028326,0.13249339,96098.0,96097.0,0.05205541]
[1736871028527,0.13249339,96098.0,96097.0,0.05305541]
[1736871028862,0.05528731,96098.0,96097.0,0.05205541]
[1736871029064,0.05528731,96098.0,96097.0,0.26017841]
[1736871029618,0.13249339,96098.0,96097.0,0.52240533]
[1736871030250,0.13249339,96098.0,96097.0,0.41817841]
[1736871030598,0.13249339,96098.0,96097.0,0.06005541]
[1736871030801,0.14574273,96098.0,96097.0,0.06005541]
[1736871031009,0.14574273,96098.0,96097.0,0.05205541]
[1736871031413,0.14574273,96098.0,96097.0,0.06105541]
[1736871031414,0.13249339,96098.0,96097.0,0.06105541]
[1736871031621,0.14148158,96098.0,96097.0,0.05205541]
[1736871031819,0.14148158,96098.0,96097.0,0.05805541]
[1736871032223,0.44700941,96098.0,96097.0,0.05205541]
[1736871032428,0.53979939,96080.0,96079.0,0.00777202]
[1736871032623,0.73204631,96080.0,96079.0,0.00777202]
[1736871032849,0.7413653,96080.0,96079.0,0.00777202]
[1736871033256,0.53981239,96074.0,96050.0,0.0017892]
[1736871033470,0.64403931,96074.0,96050.0,0.0017892]
[1736871033828,0.78054181,96074.0,96050.0,0.0017892]
[1736871034099,0.67631489,96074.0,96050.0,0.0017892]
[1736871034928,0.68661703,96074.0,96050.0,0.0017892]
[1736871035427,0.68861703,96074.0,96050.0,0.0017892]
[1736871035669,0.68661703,96074.0,96050.0,0.0017892]
[1736871036093,0.62033039,96066.0,96050.0,0.0017892]
[1736871036261,0.43986039,96052.0,96050.0,0.0017892]
[1736871036514,0.55156731,96052.0,96050.0,0.0017892]
[1736871036769,0.66058869,96052.0,96051.0,0.00296283]
[1736871036977,0.05443431,96005.0,95998.0,0.0472]
[1736871037157,0.05443431,96005.0,96003.0,0.2427677]
[1736871037365,0.05443431,96005.0,96004.0,0.00228784]
[1736871037491,0.05443431,96005.0,96004.0,0.05434325]
[1736871038087,0.06334366,96005.0,96004.0,0.05434325]
[1736871038711,0.14154974,96005.0,96004.0,0.06334325]
[1736871039000,0.36402671,96005.0,96004.0,0.06334325]
[1736871039201,0.56825363,96005.0,96004.0,0.06334325]
[1736871039386,0.64955363,96005.0,96004.0,0.06334325]
[1736871039920,0.63539866,96005.0,96004.0,0.06334325]
[1736871040121,0.13164039,95977.0,95975.0,0.0435274]
[1736871040325,0.13164039,95977.0,95976.0,0.00194374]
[1736871040618,0.14167249,95977.0,95976.0,0.00194374]
[1736871041029,0.34589941,95977.0,95976.0,0.00194374]
[1736871041202,0.3445968,95977.0,95976.0,0.00194374]
[1736871041401,0.2445968,95977.0,95976.0,0.00194374]
[1736871041632,0.3445968,95977.0,95976.0,0.00194374]
[1736871041767,0.2445968,95977.0,95976.0,0.00594374]
[1736871041978,0.3445968,95977.0,95976.0,0.00194374]
[1736871042182,0.3445968,95977.0,95976.0,0.00254374]
[1736871042534,0.3495968,95977.0,95976.0,0.00254374]
[1736871042733,0.3445968,95977.0,95976.0,0.00254374]
[1736871043955,0.3445968,95977.0,95976.0,0.00354374]
[1736871044442,0.3445968,95977.0,95976.0,0.00254374]
[1736871044644,0.3455968,95977.0,95976.0,0.00194374]
[1736871044907,0.36876482,95977.0,95976.0,0.00194374]
[1736871045313,0.55006482,95977.0,95976.0,0.00194374]
[1736871045515,0.54906482,95977.0,95976.0,0.00194374]
[1736871045630,0.55306482,95977.0,95976.0,0.00194374]
[1736871046273,0.57606482,95977.0,95976.0,0.00194374]
[1736871046887,0.4485968,95977.0,95976.0,0.00194374]
[1736871047224,0.4560768,95977.0,95976.0,0.00194374]
[1736871047808,0.2485968,95977.0,95976.0,0.00194374]
[1736871048029,0.14436988,95977.0,95976.0,0.00194374]
[1736871048215,0.14436988,95977.0,95976.0,0.30657066]
[1736871048216,0.01272949,95977.0,95976.0,0.30657066]
[1736871048619,0.004,95977.0,95976.0,1.80657066]
[1736871049021,0.07720608,95983.0,95978.0,0.15]
[1736871049348,0.05443431,95983.0,95982.0,0.15]
[1736871049496,0.13164039,95983.0,95982.0,0.15]
[1736871049710,0.13164039,95979.0,95978.0,0.0006]
[1736871049890,0.13164039,95977.0,95976.0,0.05874374]
[1736871050292,0.13860563,95977.0,95976.0,0.05874374]
[1736871050712,0.00696524,95977.0,95976.0,0.05174374]
[1736871051032,0.001,95977.0,95976.0,0.31497066]
[1736871051235,0.13164039,95988.0,95977.0,0.15]
[1736871051375,0.00130225,96006.0,95988.0,0.15]
[1736871051376,0.05443431,95993.0,95988.0,0.15]
[1736871051574,0.13294255,95992.0,95991.0,0.15]
[1736871051821,0.13164039,95992.0,95991.0,0.15]
[1736871052025,0.13164039,95992.0,95991.0,0.0006]
[1736871053188,0.05443431,95996.0,95993.0,0.15]
[1736871053392,0.05443431,95997.0,95995.0,0.15]
[1736871053591,0.13164039,95997.0,95996.0,0.358342]
[1736871053752,0.13164039,95997.0,95996.0,0.358942]
[1736871054673,0.13164039,95997.0,95996.0,0.0006]
[1736871054849,0.13264039,95997.0,95996.0,0.0096]
[1736871055284,0.05543431,95997.0,95996.0,0.0096]
[1736871055488,0.001,95997.0,95996.0,0.11382692]
[1736871055966,0.001,95997.0,95996.0,0.24442692]
[1736871056338,0.001,95997.0,95996.0,0.40466309]
[1736871056561,0.001,95997.0,95996.0,1.90466309]
[1736871057288,0.00179341,96001.0,95997.0,0.566678]
[1736871057481,0.00179341,96001.0,95999.0,0.358335]
[1736871057741,0.05443431,96015.0,96000.0,0.25422692]
[1736871057993,0.20575639,96060.0,96000.0,0.25422692]
[1736871057994,0.07720608,96027.0,96024.0,0.208281]
[1736871058193,0.07720608,96028.0,96025.0,0.10422692]
[1736871058320,0.07720608,96028.0,96027.0,0.0498]
[1736871058551,0.05443431,96033.0,96029.0,0.15]
[1736871058552,0.05443431,96032.0,96029.0,0.15]
[1736871058750,0.05443431,96032.0,96031.0,0.15]
[1736871059365,0.05493263,96032.0,96031.0,0.191709]
[1736871059620,0.05493263,96032.0,96031.0,0.29653592]
[1736871059621,0.00049832,96032.0,96031.0,0.29653592]
[1736871060189,0.05443431,96056.0,96032.0,0.023]
[1736871060382,0.07720608,96048.0,96047.0,0.208231]
[1736871060627,0.07720608,96048.0,96047.0,0.67068892]
[1736871060828,0.13164039,96051.0,96050.0,0.15]
[1736871061593,0.13164039,96051.0,96050.0,0.1506]
[1736871061861,0.13164039,96051.0,96050.0,0.0006]
[1736871062043,0.13164039,96051.0,96050.0,0.0086]
[1736871062874,0.07720608,96051.0,96050.0,0.0086]
[1736871063049,0.13164039,96051.0,96050.0,0.0086]
[1736871063466,0.1329419,96051.0,96050.0,0.0086]
[1736871063674,0.27115446,96051.0,96050.0,0.0086]
[1736871063864,0.57365295,96051.0,96050.0,0.008]
[1736871064664,0.53990339,96032.0,96031.0,0.00014971]
[1736871065041,0.68043933,96032.0,96031.0,0.00014971]
[1736871065246,0.64995933,96032.0,96031.0,0.00014971]
[1736871065452,0.34573241,96032.0,96031.0,0.00014971]
[1736871065882,0.54995933,96032.0,96031.0,0.00014971]
[1736871066083,0.54995933,96032.0,96031.0,0.00074971]
[1736871066197,0.47120804,96032.0,96031.0,0.00074971]
[1736871066844,0.69843496,96032.0,96031.0,0.00074971]
[1736871067123,0.79843496,96032.0,96031.0,0.00074971]
[1736871067292,0.80143496,96032.0,96031.0,0.00074971]
[1736871067609,0.69420804,96032.0,96031.0,0.00074971]
[1736871067787,0.69720804,96032.0,96031.0,0.00074971]
[1736871068115,0.69420804,96032.0,96031.0,0.00074971]
[1736871068527,0.69420804,96032.0,96031.0,7.1e-07]
[1736871068528,0.92500804,96032.0,96031.0,7.1e-07]
[1736871068750,1.03223496,96032.0,96031.0,7.1e-07]
[1736871069184,0.45295933,96032.0,96031.0,7.1e-07]
[1736871069387,0.55295933,96032.0,96031.0,7.1e-07]
[1736871070425,0.45295933,96032.0,96031.0,7.1e-07]
[1736871070629,0.44995933,96032.0,96031.0,7.1e-07]
[1736871070847,0.14146941,96032.0,96031.0,7.1e-07]
[1736871071226,0.06026333,96032.0,96031.0,7.1e-07]
[1736871071381,0.14177131,96032.0,96031.0,7.1e-07]
[1736871071583,0.14046941,96032.0,96031.0,7.1e-07]
[1736871071939,0.13746941,96032.0,96031.0,7.1e-07]
[1736871072316,0.13746941,96032.0,96031.0,0.00100071]
[1736871072532,0.00582902,96032.0,96031.0,0.00100071]
[1736871072696,0.00582902,96032.0,96031.0,0.25522763]
[1736871072890,0.05443431,96044.0,96043.0,0.35824]
[1736871072891,0.13164039,96044.0,96043.0,0.35824]
[1736871073116,0.05443431,96048.0,96046.0,0.15]
[1736871073337,0.07720608,96047.0,96046.0,0.15]
[1736871073541,0.05443431,96048.0,96047.0,0.208231]
[1736871073748,0.05443431,96050.0,96047.0,0.208231]
[1736871073959,0.07720608,96053.0,96050.0,0.15]
[1736871074133,0.07720608,96052.0,96051.0,0.15]
[1736871074339,0.07720608,96052.0,96051.0,0.358222]
[1736871074547,0.07720608,96064.0,96059.0,0.254705]
[1736871074742,0.05443431,96069.0,96060.0,0.10422692]
[1736871074945,0.07720608,96068.0,96061.0,0.15]
[1736871075145,0.07720608,96068.0,96063.0,0.15]
[1736871075672,0.07720608,96073.0,96067.0,0.15]
[1736871075875,0.05443431,96090.0,96072.0,0.15]
[1736871076011,0.07720608,96087.0,96081.0,0.15]
[1736871076218,0.07720608,96088.0,96083.0,0.15]
[1736871076417,0.07720608,96088.0,96085.0,0.15]
[1736871076657,0.07720608,96090.0,96089.0,0.15]
[1736871076892,0.05443431,96092.0,96091.0,0.15]
[1736871077268,0.05443431,96092.0,96091.0,0.2020809]
[1736871077663,0.05443431,96092.0,96091.0,0.2437649]
[1736871078070,0.07720608,96094.0,96093.0,0.15]
[1736871078278,0.00179151,96097.0,96095.0,0.15]
[1736871078488,0.00179151,96097.0,96095.0,0.2020809]
[1736871078663,0.00179151,96097.0,96096.0,0.358125]
[1736871079072,0.2098493,96129.0,96096.0,0.358125]
[1736871079073,0.07720608,96123.0,96121.0,0.20807]
[1736871079280,0.05443431,96123.0,96121.0,0.0520809]
[1736871079595,0.05430898,96123.0,96122.0,0.358068]
[1736871079797,0.05937138,96123.0,96122.0,0.4101489]
[1736871079982,0.0050624,96123.0,96122.0,0.4101489]
[1736871080185,0.00229433,96129.0,96128.0,0.208055]
[1736871080381,0.00229433,96129.0,96128.0,0.51436282]
[1736871080612,0.05430898,96145.0,96144.0,0.15]
[1736871080824,0.0163107,96149.0,96144.0,0.15]
[1736871080825,0.0163107,96149.0,96147.0,0.0478]
[1736871080965,0.00194494,96148.0,96147.0,0.51004092]
[1736871081682,0.00194494,96148.0,96147.0,0.56212182]
[1736871081882,0.05304858,96157.0,96156.0,0.357995]
[1736871082117,0.05304858,96158.0,96157.0,0.15]
[1736871082322,0.05304858,96158.0,96157.0,0.207992]
[1736871082526,0.05304858,96158.0,96157.0,0.4100729]
[1736871084127,0.05304858,96158.0,96157.0,0.0520809]
[1736871084327,0.13025466,96158.0,96157.0,0.0520809]
[1736871084529,0.05304858,96158.0,96157.0,0.0520809]
[1736871084732,0.05304858,96158.0,96157.0,0.0600809]
[1736871085361,0.05304858,96170.0,96158.0,0.15]
[1736871085576,0.05304858,96170.0,96169.0,0.15]
[1736871085773,0.05304858,96170.0,96169.0,0.2020809]
[1736871087241,0.05390228,96170.0,96169.0,0.2020809]
[1736871087620,0.05390228,96170.0,96169.0,0.0550809]
[1736871087833,0.05919462,96170.0,96169.0,0.0550809]
[1736871088179,0.05919462,96170.0,96169.0,0.0520809]
[1736871088592,0.1364007,96170.0,96169.0,0.0520809]
[1736871088929,0.1364007,96170.0,96169.0,0.0540809]
[1736871089166,0.1364007,96170.0,96169.0,0.0520809]
[1736871089970,0.13770062,96170.0,96169.0,0.0520809]
[1736871090172,0.1364007,96170.0,96169.0,0.0520809]
[1736871091000,0.1364007,96170.0,96169.0,0.0550809]
[1736871091857,0.13770061,96170.0,96169.0,0.0550809]
[1736871092057,0.13770062,96170.0,96169.0,0.0550809]
[1736871093501,0.24192754,96170.0,96169.0,0.0550809]
[1736871093675,0.56262717,96170.0,96169.0,0.0550809]
[1736871094253,0.57159262,96170.0,96169.0,0.003]
[1736871094831,0.05304858,96133.0,96132.0,0.0478]
[1736871095048,0.05304858,96133.0,96132.0,0.04794964]
[1736871095413,0.05304858,96133.0,96132.0,0.10003054]
[1736871095617,0.05304858,96133.0,96132.0,0.25003054]
[1736871096222,0.05304858,96134.0,96133.0,0.566089]
[1736871096425,0.05304858,96139.0,96138.0,0.15]
[1736871096777,0.05304858,96144.0,96142.0,0.15]
[1736871096950,0.13025466,96139.0,96138.0,0.0520809]
[1736871097221,0.13025466,96133.0,96132.0,0.00014964]
[1736871097435,0.23578214,96133.0,96132.0,0.00014964]
[1736871097650,0.13025466,96092.0,96076.0,0.208166]
[1736871097861,0.05304858,96087.0,96080.0,0.2062101]
[1736871098068,0.07720608,96093.0,96086.0,0.041684]
[1736871098274,0.05304858,96089.0,96086.0,0.041684]
[1736871098483,0.00130093,96088.0,96086.0,0.041684]
[1736871098685,0.05304858,96089.0,96086.0,0.041684]
[1736871099107,0.05304858,96089.0,96088.0,0.15]
[1736871099442,0.05304858,96089.0,96086.0,0.00049903]
[1736871099647,0.13025466,96087.0,96086.0,0.00049903]
[1736871099857,0.1315558,96087.0,96086.0,0.00049903]
[1736871100090,0.23578272,96087.0,96086.0,0.00049903]
[1736871100300,0.23448158,96087.0,96086.0,0.00049903]
[1736871100799,0.23448158,96087.0,96086.0,0.00649903]
[1736871101013,0.42339248,96087.0,96086.0,0.00049903]
[1736871101286,0.42439248,96087.0,96086.0,0.00049903]
[1736871101558,0.35748158,96087.0,96086.0,0.00049903]
[1736871101758,0.45948158,96087.0,96086.0,0.00049903]
[1736871102102,0.46480158,96087.0,96086.0,0.00049903]
[1736871102287,0.46480158,96087.0,96086.0,0.00149903]
[1736871102488,0.33648158,96087.0,96086.0,0.00149903]
[1736871102686,0.05504858,96087.0,96086.0,0.00149903]
[1736871102886,0.13355592,96087.0,96086.0,0.00149903]
[1736871103294,0.33778284,96087.0,96086.0,0.00149903]
[1736871103506,0.33648158,96087.0,96086.0,0.05357993]
[1736871103706,0.33448158,96087.0,96086.0,0.00049903]
[1736871104123,0.33648158,96087.0,96086.0,0.00049903]
[1736871104366,0.33448158,96087.0,96086.0,0.00049903]
[1736871104604,0.23648158,96087.0,96086.0,0.00149903]
[1736871104770,0.33648158,96087.0,96086.0,0.00149903]
[1736871104986,0.33648158,96087.0,96086.0,0.00049903]
[1736871105185,0.33848158,96087.0,96086.0,0.00049903]
[1736871105378,0.33848158,96087.0,96086.0,0.05257993]
[1736871105561,0.33448158,96087.0,96086.0,0.05257993]
[1736871105757,0.33648158,96087.0,96086.0,0.05257993]
[1736871105983,0.45948158,96087.0,96086.0,0.05257993]
[1736871107131,0.45748158,96087.0,96086.0,0.05257993]
[1736871107521,0.45948158,96087.0,96086.0,0.05257993]
[1736871107709,0.45848158,96087.0,96086.0,0.05257993]
[1736871108526,0.45848158,96087.0,96086.0,0.00049903]
[1736871109915,0.4633057,96087.0,96086.0,0.00049903]
[1736871110941,0.47762781,96087.0,96086.0,0.00049903]
[1736871111101,0.48362781,96087.0,96086.0,0.00149903]
[1736871111297,0.72536685,96087.0,96086.0,1e-06]
[1736871111501,0.72536685,96087.0,96017.0,0.0793]
[1736871111502,0.12925466,96036.0,96017.0,0.0793]
[1736871111701,0.44173658,96036.0,96035.0,0.05392302]
[1736871111990,0.44638995,96036.0,96035.0,0.05392302]
[1736871112934,0.54638995,96036.0,96035.0,0.05392302]
[1736871113123,0.91736887,96036.0,96035.0,0.05392302]
[1736871113329,0.91736887,96036.0,96035.0,0.00184212]
[1736871114260,0.83884724,96036.0,96035.0,0.00284212]
[1736871114507,0.46584724,96036.0,96035.0,0.00284212]
[1736871114714,0.46584724,96036.0,96035.0,0.00184212]
[1736871114715,0.13390803,96036.0,96035.0,0.00184212]
[1736871114905,0.14320992,96036.0,96035.0,0.00284212]
[1736871115095,0.14407262,96036.0,96035.0,0.00284212]
[1736871115245,0.13607262,96036.0,96035.0,0.05392302]
[1736871115448,0.13525466,96036.0,96035.0,0.05492302]
[1736871115644,0.25711962,96036.0,96035.0,0.05492302]
[1736871115879,0.35666145,96036.0,96035.0,0.05392302]
[1736871116085,0.45666145,96036.0,96035.0,0.05392302]
[1736871116281,0.34032517,96036.0,96035.0,0.00184212]
[1736871116439,0.24764517,96036.0,96035.0,0.00184212]
[1736871116638,0.24032517,96036.0,96035.0,0.00184212]
[1736871117230,0.24032517,96036.0,96035.0,0.00384212]
[1736871117231,0.13609825,96036.0,96035.0,0.00384212]
[1736871117427,0.1374001,96036.0,96035.0,0.00184212]
[1736871117836,0.1434001,96036.0,96035.0,0.00284212]
[1736871118075,0.13609825,96036.0,96035.0,0.00184212]
[1736871118280,0.08404967,96036.0,96035.0,0.00184212]
[1736871118482,0.08504967,96036.0,96035.0,0.05392302]
[1736871118648,0.13709825,96036.0,96035.0,0.05392302]
[1736871119405,0.13839995,96036.0,96035.0,0.05392302]
[1736871119633,0.26027385,96036.0,96035.0,0.05392302]
[1736871119831,0.25897212,96036.0,96035.0,0.05392302]
[1736871120272,0.25797212,96036.0,96035.0,0.05392302]
[1736871120675,0.24032517,96036.0,96035.0,0.05392302]
[1736871121051,0.24132517,96036.0,96035.0,0.05792302]
[1736871121256,0.24032517,96036.0,96035.0,0.05392302]
[1736871122401,0.24032517,96036.0,96035.0,0.05492302]
[1736871122804,0.46332517,96036.0,96035.0,0.00284212]
[1736871123018,0.56162991,96036.0,96035.0,0.00284212]
[1736871123223,0.71162991,96036.0,96035.0,0.00284212]
[1736871123649,0.47040517,96036.0,96035.0,0.00184212]
[1736871123882,0.36332517,96036.0,96035.0,0.00184212]
[1736871124116,0.34740517,96036.0,96035.0,0.00184212]
[1736871124362,0.47040517,96036.0,96035.0,0.00184212]
[1736871124535,0.62840517,96036.0,96035.0,0.00284212]
[1736871124767,0.24740517,96036.0,96035.0,0.05392302]
[1736871124916,0.13609825,96036.0,96035.0,0.05392302]
[1736871125118,0.08704967,96036.0,96035.0,0.05392302]
[1736871125297,0.13609825,96036.0,96035.0,0.10312302]
[1736871125505,0.13382347,96036.0,96035.0,0.10312302]
[1736871126090,0.13512522,96036.0,96035.0,0.10312302]
[1736871126288,0.23935214,96036.0,96035.0,0.05392302]
[1736871126586,0.36105039,96036.0,96035.0,0.05392302]
[1736871126790,0.46505039,96036.0,96035.0,0.05392302]
[1736871127105,0.46105039,96036.0,96035.0,0.05392302]
[1736871127341,0.36105039,96036.0,96035.0,0.05392302]
[1736871127568,0.46813039,96036.0,96035.0,0.05392302]
[1736871127772,0.23805039,96036.0,96035.0,0.00184212]
[1736871128000,0.24205039,96036.0,96035.0,0.00184212]
[1736871128186,0.23805039,96036.0,96035.0,0.00184212]
[1736871128589,0.23648158,96036.0,96035.0,0.00184212]
[1736871129114,0.184433,96036.0,96035.0,0.00184212]
[1736871129314,0.13225466,96036.0,96035.0,0.05104212]
[1736871129560,0.13225466,96036.0,96035.0,0.48489912]
[1736871129561,0.08020608,96036.0,96035.0,0.48489912]
[1736871129767,0.08020608,96036.0,96035.0,0.53698002]
[1736871130352,0.05204858,96058.0,96057.0,0.208209]
[1736871130556,0.07720608,96065.0,96064.0,0.208194]
[1736871130764,0.05204858,96071.0,96064.0,0.0756]
[1736871131132,0.12925466,96071.0,96070.0,0.15]
[1736871131521,0.05204858,96078.0,96071.0,0.208179]
[1736871131864,0.12925466,96078.0,96077.0,0.208166]
[1736871132021,0.00215443,96087.0,96070.0,0.2020809]
[1736871132022,0.07720608,96071.0,96070.0,0.2020809]
[1736871132226,0.12925466,96071.0,96070.0,0.0520809]
[1736871132423,0.05204858,96077.0,96070.0,0.0520809]
[1736871132631,0.05204858,96080.0,96076.0,0.208168]
[1736871132836,0.07720608,96071.0,96069.0,0.15]
[1736871133158,0.07720608,96071.0,96070.0,0.208181]
[1736871133365,0.07720608,96071.0,96069.0,0.15]
[1736871133568,0.05204858,96060.0,96057.0,0.0492]
[1736871134019,0.05204858,96060.0,96059.0,0.15]
[1736871134438,0.05204858,96058.0,96057.0,0.0492]
[1736871134643,0.12925466,96058.0,96057.0,0.0492]
[1736871135683,0.05204858,96047.0,96046.0,0.00776686]
[1736871135895,0.12925466,96047.0,96046.0,0.00776686]
[1736871136102,0.13055627,96047.0,96046.0,0.00781663]
[1736871136805,0.13055627,96047.0,96046.0,0.05213067]
[1736871136806,0.23478319,96047.0,96046.0,0.05213067]
[1736871137016,0.23348158,96047.0,96046.0,0.05213067]
[1736871137863,0.23348158,96047.0,96046.0,0.05713067]
[1736871138242,0.07720608,96047.0,96046.0,0.05713067]
[1736871138449,0.12925466,96048.0,96046.0,0.05313067]
[1736871138667,0.12925466,96047.0,96046.0,0.05613067]
[1736871138882,0.37070875,96047.0,96046.0,0.05613067]
[1736871139083,0.37070875,96047.0,96046.0,6.7e-07]
[1736871139084,0.71087701,96047.0,96046.0,6.7e-07]
[1736871139736,0.12925466,96036.0,96035.0,0.00179235]
[1736871139940,0.23478343,96036.0,96035.0,0.00179235]
[1736871140151,0.23348158,96036.0,96035.0,0.00179235]
[1736871140394,0.12925466,96036.0,96035.0,0.00179235]
[1736871140647,0.05204858,96036.0,96035.0,0.00179235]
[1736871140908,0.12925466,96036.0,96035.0,0.00179235]
[1736871141145,0.07720608,96038.0,96037.0,0.15]
[1736871141390,0.07720608,96042.0,96038.0,0.4165]
[1736871141663,0.07720608,96039.0,96038.0,0.20825]
[1736871141905,0.07725585,96047.0,96043.0,0.208238]
[1736871142083,0.07720608,96044.0,96043.0,0.208238]
[1736871142291,0.07720608,96044.0,96035.0,0.26174835]
[1736871142292,0.12925466,96036.0,96035.0,0.05349235]
[1736871142537,0.12925466,96036.0,96035.0,0.05149235]
[1736871143294,0.07720608,96036.0,96035.0,0.05149235]
[1736871143498,0.12925466,96036.0,96035.0,0.05449235]
[1736871143694,0.07720608,96036.0,96035.0,0.05449235]
[1736871144031,0.07720608,96036.0,96035.0,0.05149235]
[1736871144232,0.05204858,96041.0,96035.0,0.05649235]
[1736871144432,0.12925466,96038.0,96035.0,0.05949235]
[1736871144647,0.12925466,96036.0,96035.0,0.05949235]
[1736871144846,0.13055637,96036.0,96035.0,0.00979235]